Cogmind - Beta 16.1 @@@ ROGUE MODE // 2026.02.12 @ 00:56:54 Player: deepledi Result: Destroyed by KJ-GG5(R) with Subdweller Machine Gun Performance ------------- Evolutions (0) 0 Regions Visited (2) 400 Robots Destroyed (11) 55 Value Destroyed (310) 310 Prototype IDs (2) 40 Alien Tech Used (0) 0 Bonus (0) 0 TOTAL SCORE: 805 Bonus ------- None Cogmind --------- Core Integrity 0/250 Matter 300/300 Energy 200/200 System Corruption 0% Temperature Cool (0) Movement Treading (160) Location -10/Subcaves Parts ------- > --- POWER (1) -------- Subdweller Power Source > --- PROPULSION (2) --- Light Treads Light Treads > --- UTILITY (2) ------ Large Storage Unit > --- WEAPON (2) ------- Subdweller Laser Battle Cannon > --- INVENTORY (15) --- Ion Engine Subdweller Monowheel Subdweller Monowheel Large Storage Unit High-capacity Matter Pod (200) Subdweller Optics Sensor Array Signal Interpreter Scrap Shield Medium Laser Assault Rifle Battle Rifle Grenade Launcher Grenade Launcher Peak State ------------ > --- POWER ------------ Subdweller Power Source > --- PROPULSION ------- Light Treads Subdweller Monowheel > --- UTILITY ---------- Large Storage Unit Light Armor Plating > --- WEAPON ----------- Subdweller Laser Subdweller Machine Gun > --- INVENTORY -------- Ion Engine Light Treads Subdweller Monowheel Medium Storage Unit Large Storage Unit High-capacity Matter Pod Subdweller Optics Sensor Array Signal Interpreter Light Armor Plating Medium Laser Assault Rifle Battle Cannon Grenade Launcher Grenade Launcher [Rating: 12] Favorites ----------- Power Ion Engine Engine Ion Engine Propulsion Light Treads Treads Light Treads Wheel Wheel Utility Light Armor Plating Device Sensor Array Storage Large Storage Unit Protection Light Armor Plating Weapon Medium Laser Energy Gun Medium Laser Ballistic Gun Assault Rifle Ballistic Cannon Battle Cannon Build | -11 -10 -10 ------- Run | Yrd Mat Sub Slots Evolved . | . . . Power . | . . . Propulsion . | . . . Utility . | . . . Weapon . | . . . Parts Attached 22 | 6 6 10 Power 2 | 1 . 1 Engine 2 | 1 . 1 Core . | . . . Reactor . | . . . Propulsion 4 | 2 . 2 Treads 2 | 1 . 1 Leg . | . . . Wheel 2 | 1 . 1 Hover . | . . . Flight . | . . . Utility 8 | 1 5 2 Device 3 | . 2 1 Storage 3 | 1 2 . Processor . | . . . Hackware . | . . . Protection 2 | . 1 1 Artifact . | . . . Weapon 8 | 2 1 5 Energy Gun 2 | 1 . 1 Energy Cannon . | . . . Ballistic Gun 5 | 1 1 3 Ballistic Cannon 1 | . . 1 Launcher . | . . . Special Weapon . | . . . Impact Weapon . | . . . Slashing Weapon . | . . . Piercing Weapon . | . . . Special Melee Weapon . | . . . Unidentified Prototypes . | . . . Parts Lost 2 | . . 2 Power . | . . . Propulsion . | . . . Utility 2 | . . 2 Weapon . | . . . Highest Loss Streak 1 | . . 1 To Critical Strikes . | . . . Average Backups 9 | 1 7 13 Power . | . 1 1 Propulsion 1 | . 2 1 Utility 3 | . 2 6 Weapon 2 | . 1 4 Tool/Special . | . . . Unused Backups 11 | . . 11 Power 1 | . . 1 Propulsion 3 | . . 3 Utility 4 | . . 4 Weapon 3 | . . 3 Tool/Special . | . . . Average Slot Usage (%) 97 | . 96 98 Engine 14 | . 14 14 Treads 15 | . 14 17 Wheel 12 | . 14 10 Device 4 | . 5 2 Storage 14 | . 14 14 Protection 7 | . 5 10 Energy Gun 14 | . 14 14 Ballistic Gun 12 | . 14 10 Ballistic Cannon 1 | . . 3 Peak Build Rating 12 | 6 8 12 Average Rating 8 | 4 7 11 On Entrance 4 | . 6 8 Avg Prop Armor Cover (%) 10 | 11 10 10 Naked Turns . | . . . Heaviest Build 36 | 14 32 36 Greatest Support 40 | 20 20 40 Greatest Overweight (x) 3 | 1 3 3 Average Overweight (x) 1 | . 1 1 Largest Inventory Capacity 15 | 8 15 15 Average Capacity 11 | 6 9 15 Most Carried 15 | 4 11 15 Average Carried 9 | 2 7 13 Final Capacity 15 | 8 15 15 Final Carried 15 | 4 11 15 Class Distribution -------------------- 100% | Mutant Dominant Class ---------------- Mutant | -10/Materials Mutant | -10/Subcaves Resources | -11 -10 -10 ----------- Run | Yrd Mat Sub Matter Collected 782 | 227 181 374 Remotely . | . . . Salvage Created 517 | 85 284 148 Parts 23 | 2 13 8 Haulers Intercepted 1 | . 1 . Recyclers Shooed 2 | . 2 . Parts Field Recycled . | . . . Retrieved Matter . | . . . Parts Self-Destructed . | . . . Prevented . | . . . Parts Restored . | . . . Kills | -11 -10 -10 ------- Run | Yrd Mat Sub Combat Hostiles Destroyed 8 | . 4 4 Guns 8 | . 4 4 Classes Destroyed 4 | 1 2 1 Hauler 1 | . 1 . Recycler 2 | 1 1 . Grunt 4 | . 4 . Subdweller 4 | . . 4 Best Kill Streak 2 | 1 2 2 Combat Bots Only 2 | . 2 2 Max Kills in Single Turn 1 | 1 1 1 Gunslinging . | . . . Exploded . | . . . Melee . | . . . Uniques/NPCs Destroyed . | . . . Combat | -11 -10 -10 -------- Run | Yrd Mat Sub Hostile Shots Fired 70 | . 24 46 Missed 23 | . 10 13 Hits 47 | . 14 33 Projectile 47 | . 14 33 Damage Taken 863 | . 164 699 Core 264 | . 76 188 Absorbed by Shields . | . . . Core Remaining (%) 100 | 100 . . Volleys Fired 67 | 5 35 27 Largest 2 | 2 2 2 Hottest 90 | 70 70 90 Shots Fired 127 | 10 69 48 Gun 127 | 10 69 48 Cannon . | . . . Launcher . | . . . Special . | . . . Kinetic 61 | 5 35 21 Thermal 66 | 5 34 27 Explosive . | . . . Electromagnetic . | . . . Robot Hit Streak 22 | 6 7 22 Robot Miss Streak 3 | 1 3 2 Penetration Max . | . . . Secondary Targets 1 | . . 1 Max Gunslinging Chain 1 | . . 1 Shots Hit Robots 83 | 9 35 39 Core Hits 20 | 2 10 8 Critical Kills . | . . . Critical Parts Destroyed . | . . . Critical Strikes 2 | . 2 . Burn 2 | . 2 . Melee Attacks . | . . . Impact . | . . . Slashing . | . . . Piercing . | . . . Sneak Attacks . | . . . Combat Hostiles . | . . . Follow-up Attacks . | . . . Damage Inflicted 1338 | 113 473 752 Guns 1338 | 113 473 752 Cannons . | . . . Explosions . | . . . Melee . | . . . Ramming . | . . . Kinetic 659 | 49 250 360 Thermal 679 | 64 223 392 Explosive . | . . . Electromagnetic . | . . . Impact . | . . . Slashing . | . . . Piercing . | . . . Highest Corruption . | . . . Average Corruption . | . . . Corruption Purged . | . . . Corruption Blocked . | . . . Overload Shots . | . . . Overflow Damage . | . . . Projectiles . | . . . Explosions . | . . . Melee . | . . . Knockbacks . | . . . Impact . | . . . Kinetic . | . . . Secondary . | . . . Self-Inflicted Damage . | . . . Shots . | . . . Rammed . | . . . Targets Rammed . | . . . Kicked . | . . . Crushed . | . . . Highest Temperature 114 | 36 114 . Average Temperature 29 | 16 31 . Received Heat Transfer 102 | . 84 18 Siege Activations . | . . . Martial Activations . | . . . Shielding Activations . | . . . Robots Disrupted . | . . . Combat Hostiles . | . . . Robots Corrupted . | . . . Combat Hostiles . | . . . Parts Fried . | . . . Impact Corruptions . | . . . Robots Melted . | . . . Combat Hostiles . | . . . Parts Melted 6 | 1 4 1 Heat Transferred 1474 | 185 814 475 Parts Sabotaged . | . . . Parts Stolen . | . . . Parts Stripped . | . . . Power Chain Reactions . | . . . Alert | -11 -10 -10 ------- Run | Yrd Mat Sub Maximum Alert Level . | . . . Low Security (%) 100 | 100 100 . Level 1 . | . . . Level 2 . | . . . Level 3 . | . . . Level 4 . | . . . Level 5 . | . . . High Security . | . . . Max Security . | . . . Peak Influence 50 | 5 50 . Initial . | . . . Average 7 | . 8 . Influence Increases 125 | 5 120 . Destroy 0b10 Robot/C 80 | . 80 . Destroy 0b10 Robot/NC 15 | 5 10 . Destroy Leader 22 | . 22 . Successful Hack 8 | . 8 . Influence Decreases 125 | 5 120 . Time Decay 125 | 5 120 . Squads Dispatched 3 | . 3 . Investigation 1 | . 1 . Extermination . | . . . Reinforcement 2 | . 2 . Assault . | . . . Garrison . | . . . Intercept . | . . . Searches Triggered . | . . . Construction Impeded . | . . . Haulers Reinforced . | . . . Active Scanning Responses . | . . . Cargo Convoy Interrupts . | . . . Stealth | -11 -10 -10 --------- Run | Yrd Mat Sub Distress Signals . | . . . Communications Jammed . | . . . Distress Signals . | . . . Times Spotted 17 | . 9 8 Peak Tracking Total 2 | . 2 2 Tactical Retreats . | . . . Traps | -11 -10 -10 ------- Run | Yrd Mat Sub Traps Triggered 2 | . 2 . Indirectly . | . . . Trap Hack Attempts . | . . . Triggered . | . . . Disarmed . | . . . Reprogrammed . | . . . Reused . | . . . Traps Extracted . | . . . Installed . | . . . Triggered . | . . . Machines | -11 -10 -10 ---------- Run | Yrd Mat Sub Machines Disabled . | . . . Max in Single Turn . | . . . Machines Repaired . | . . . Machines Dismantled . | . . . Machines Sabotaged . | . . . Overloaded Fab Kills . | . . . Hacking | -11 -10 -10 --------- Run | Yrd Mat Sub Machines Accessed 4 | . 4 . Terminals 3 | . 3 . Fabricators . | . . . Repair Stations . | . . . Recycling Units 1 | . 1 . Scanalyzers . | . . . Garrison Access . | . . . Total Hacks 11 | . 11 . Successful 10 | . 10 . Failed 1 | . 1 . Catastrophic . | . . . Database Lockouts . | . . . Manual 3 | . 3 . Terminals 10 | . 10 . Fabricators . | . . . Repair Stations . | . . . Recycling Units 1 | . 1 . Scanalyzers . | . . . Garrison Access . | . . . Terminal Hacks 6 | . 6 . Prototype ID Bank 1 | . 1 . Alert Level 2 | . 2 . Locate Traps 1 | . 1 . Zone Layout 2 | . 2 . Fabricator Hacks . | . . . Repair Station Hacks . | . . . Recycling Unit Hacks 1 | . 1 . Report Inventory 1 | . 1 . Scanalyzer . | . . . Garrison Access Hacks . | . . . Unauthorized Hacks 3 | . 3 . Terminals 3 | . 3 . Botnet 3 | . 3 . Fabricators . | . . . Repair Stations . | . . . Recycling Units . | . . . Scanalyzers . | . . . Garrison Access . | . . . Data Cores Recovered 1 | . 1 . Used 1 | . 1 . Hacking Detections 2 | . 2 . Full Trace Events 1 | . 1 . Feedback Events . | . . . Feedback Blocked . | . . . Robot Schematics Acquired . | . . . Robots Built . | . . . Authchips . | . . . Time . | . . . Total Robot Build Rating . | . . . Part Schematics Acquired . | . . . Parts Built . | . . . Authchips . | . . . Time . | . . . Total Part Build Rating . | . . . Part Studies Acquired . | . . . Parts Repaired . | . . . Time . | . . . Parts Recycled . | . . . Recycled Matter . | . . . Retrieved Matter . | . . . Retrieved Components . | . . . Parts Scanalyzed . | . . . Part Schematics Acquired . | . . . Parts Damaged . | . . . Bothacking | -11 -10 -10 ------------ Run | Yrd Mat Sub Used RIF Installer . | . . . Robots Hacked . | . . . Non-combat . | . . . Combat . | . . . Robot Hacks Applied . | . . . Relay Couplers Released . | . . . Fabnet Peak Effective % . | . . . Robots Rewired . | . . . Allies Hacked . | . . . Hacks Repelled . | . . . Allies | -11 -10 -10 -------- Run | Yrd Mat Sub Total Allies . | . . . Largest Group . | . . . Highest-Rated Group . | . . . Highest-Rated Ally . | . . . Total Orders . | . . . Ally Attacks . | . . . Total Damage . | . . . Kills . | . . . Allies Corrupted . | . . . Allies Melted . | . . . Intel | -11 -10 -10 ------- Run | Yrd Mat Sub Active Infowar (turns) 329 | . 239 90 Optics 90 | . . 90 Sensors 211 | . 211 . Seismic 28 | . 28 . Robot Analysis Total . | . . . Derelict Logs Recovered . | . . . Drone Launches . | . . . Drone Recoveries . | . . . Exploration | -11 -10 -10 ------------- Run | Yrd Mat Sub Turns Passed 1074 | 85 549 440 Spaces Moved 713 | 60 407 246 Core 2 | 2 . . Treads 69 | 6 6 57 Legs . | . . . Wheels 642 | 52 401 189 Hover . | . . . Flight . | . . . Fastest Speed 50 | 50 95 120 Average Speed 112 | 96 103 130 Slowest Speed 240 | 160 240 160 Overloaded Moves . | . . . Propulsion Burnouts . | . . . Robots Hopped . | . . . Potential Cave-ins . | . . . Cave-ins Triggered . | . . . Exploration Rate (%) 33 | 3 67 31 Regions Visited 2 Branch Regions 1 Pre-discovered Areas 1 | . . 1 Known Exits Taken . | . . . Unknown Exits Taken 2 | 1 1 . Scrap Searched 2 | . . 2 Spaces Dug . | . . . Terrain Destroyed . | . . . Melee . | . . . Projectile . | . . . AOE . | . . . Terrain Rammed . | . . . Walls Destroyed . | . . . Machines Disabled . | . . . Actions | -11 -10 -10 --------- Run | Yrd Mat Sub Total 859 | 74 465 320 Wait 19 | . 2 17 Move 711 | 59 406 246 Hop . | . . . Pick Up 21 | 4 9 8 Fast Attach 10 | 6 3 1 Attach 8 | . 2 6 Detach 5 | . 1 4 Swap 5 | . 2 3 Drop 13 | . 5 8 Fire 67 | 5 35 27 Melee . | . . . Ram . | . . . Kick . | . . . Crush . | . . . Escape Stasis . | . . . Rewire . | . . . Trap . | . . . Miscellaneous . | . . . Route ------- -11/Scrapyard -10/Materials (discovered 4 exits: [*Mat x2] / [*Min] / [*Sub]) -10/Subcaves (discovered 2 exits: [Scr x2]) History --------- Turn | Location | Event 8 | -11/Scrapyard | Discovered new exit (range 16) 86 | -11/Scrapyard | Entered Materials 87 | -10/Materials | Met a group of wandering Federalists 161 | -10/Materials | Discovered new exit (range 11) 309 | -10/Materials | Build established: Mutant 370 | -10/Materials | Discovered new exit (range 15) 541 | -10/Materials | Discovered new exit (range 7) 578 | -10/Materials | Discovered new exit (range 8) 635 | -10/Materials | Entered Subcaves 636 | -10/Subcaves | Continued accompanying wandering Federalists (3) 636 | -10/Subcaves | Approached by a straggling Scientist 659 | -10/Subcaves | Learned location of Zion (-7) 659 | -10/Subcaves | Met a Zionite searching for "candidates" 686 | -10/Subcaves | Shifting Twisted Machinery released Sub. Laser 705 | -10/Subcaves | Shifting Twisted Machinery released Sub. Machine Gun 929 | -10/Subcaves | Shifting Twisted Machinery released Battle Rifle 931 | -10/Subcaves | Shifting Twisted Machinery released Sub. Machine Gun 945 | -10/Subcaves | Core integrity fell below 50% 969 | -10/Subcaves | Core integrity fell below 20% 1075 | -10/Subcaves | Disturbed a concealed Subdweller 1075 | -10/Subcaves | Destroyed by KJ-GG5(R) with Subdweller Machine Gun Last Messages --------------- 00978_ Acquired 41 matter. 00979_ Acquired 25 matter. [Achievement: Spot Them First] 00982_ Acquired 8 matter. 00985_ Dropped Broken Sub. Machine Gun. 00987_ Acquired Battle Rifle. 00992_ Acquired Sub. Monowheel. 01068_ Searching scrap... 01068_ Found Sub. Machine Gun. 01068_ Found Battle Rifle. 01068_ Found 31 Matter. 01069_ Acquired 2 matter. 01069_ Searching scrap... 01069_ Found Scrap Shield. 01069_ Found 68 Matter. 01073_ Dropped Sub. Machine Gun. 01074_ Dropped Med. Storage Unit. 01074_ Acquired Scrap Shield. 01075_ KJ-GG5(R) angrily emerges from the Twisted Machinery. Map ----- +----------------------------------------------------+ | | | | | | | | | | | | | | | | | | | ?????????????????????????????????????????????? | | ?????????????????????????????????????????????? | | ?????????????????????????????????????????????? | | ?????????????????????????????????????????????? | | ?????????????????????????????????????????????? | | ?????????????????????????????????????????????? | | ?????????????????????????????????????????????? | | ?????????????????????????????????????????????? | | ?????????????????????????????????????????????? | | ?????????????????????????????????????????????? | | ?????????????????????????????????????????????? | | ?????????????????????????????????????????????? | | ?????????????????????????????????????????????? | | ?????????????????????????????????????????????? | | ?????????????????????????????????????????????? | | ?????????????????#######?????????????????????? | | ?????????????????#